[Event "*** Titled Tuesday Blitz"]
[Site "Chess.com"]
[Date "2018.12.04"]
[Round "1"]
[White "Ravan_02"]
[Black "chesstatour"]
[Result "1-0"]
[WhiteElo "2501"]
[BlackElo "2076"]
[TimeControl "180+2"]
[EndTime "13:08:03 PST"]
[Termination "Ravan_02 won on time"]

1. d4 {[%clk 0:02:55.1]} 1... c6 {[%clk 0:02:56.5]} 2. Nf3 {[%clk 0:02:53.1]}
2... d5 {[%clk 0:02:58.4]} 3. Bg5 {[%clk 0:02:50.1]} 3... h6 {[%clk 0:02:55.6]}
4. Bh4 {[%clk 0:02:49.8]} 4... Qb6 {[%clk 0:02:56.2]} 5. Qc1 {[%clk 0:02:47.9]}
5... Nf6 {[%clk 0:02:55.8]} 6. Bxf6 {[%clk 0:02:47.4]} 6... exf6 {[%clk
0:02:57.7]} 7. e3 {[%clk 0:02:48.3]} 7... Bf5 {[%clk 0:02:47.9]} 8. Nbd2 {[%clk
0:02:48.8]} 8... Nd7 {[%clk 0:02:44.3]} 9. a3 {[%clk 0:02:49.5]} 9... Be7 {[%clk
0:02:39.1]} 10. c4 {[%clk 0:02:50.3]} 10... dxc4 {[%clk 0:02:40.1]} 11. Nxc4
{[%clk 0:02:51]} 11... Qc7 {[%clk 0:02:41]} 12. Be2 {[%clk 0:02:50.6]} 12... O-O
{[%clk 0:02:41.4]} 13. O-O {[%clk 0:02:51.2]} 13... Rfd8 {[%clk 0:02:40.3]} 14.
Qc3 {[%clk 0:02:51.8]} 14... Nb6 {[%clk 0:02:35]} 15. Nxb6 {[%clk 0:02:52.7]}
15... Qxb6 {[%clk 0:02:30.2]} 16. Rac1 {[%clk 0:02:52.5]} 16... Rac8 {[%clk
0:02:24.5]} 17. b4 {[%clk 0:02:52.6]} 17... Ra8 {[%clk 0:02:07.1]} 18. Nd2
{[%clk 0:02:53]} 18... Bf8 {[%clk 0:01:30.3]} 19. Nc4 {[%clk 0:02:52.9]} 19...
Qc7 {[%clk 0:01:30]} 20. Na5 {[%clk 0:02:53.6]} 20... Qd7 {[%clk 0:01:15.1]} 21.
Bc4 {[%clk 0:02:48.4]} 21... Rac8 {[%clk 0:01:12.6]} 22. Rfe1 {[%clk 0:02:44.3]}
22... Be6 {[%clk 0:01:08.5]} 23. Bxe6 {[%clk 0:02:44.2]} 23... fxe6 {[%clk
0:01:10.1]} 24. Qb3 {[%clk 0:02:45]} 24... Qd5 {[%clk 0:01:08.5]} 25. Qb2 {[%clk
0:02:45.6]} 25... b6 {[%clk 0:01:06.8]} 26. Nb3 {[%clk 0:02:44.2]} 26... e5
{[%clk 0:00:49.2]} 27. Red1 {[%clk 0:02:30.9]} 27... Qe6 {[%clk 0:00:48.8]} 28.
dxe5 {[%clk 0:02:30.7]} 28... Rxd1+ {[%clk 0:00:44.6]} 29. Rxd1 {[%clk
0:02:30.9]} 29... fxe5 {[%clk 0:00:45.4]} 30. Qc2 {[%clk 0:02:31.4]} 30... c5
{[%clk 0:00:41.4]} 31. bxc5 {[%clk 0:02:31.5]} 31... Bxc5 {[%clk 0:00:39.8]} 32.
a4 {[%clk 0:02:13.7]} 32... Bxe3 {[%clk 0:00:27.4]} 33. Qe2 {[%clk 0:02:11.2]}
33... Qxb3 {[%clk 0:00:21.3]} 34. fxe3 {[%clk 0:02:12.3]} 34... Qxa4 {[%clk
0:00:11.4]} 35. Qf3 {[%clk 0:02:04.9]} 35... e4 {[%clk 0:00:10.3]} 36. Qg4
{[%clk 0:02:00.7]} 36... Rf8 {[%clk 0:00:09.1]} 37. h4 {[%clk 0:02:01.4]} 37...
Qc2 {[%clk 0:00:06.1]} 38. Rd7 {[%clk 0:02:00.6]} 38... Qf2+ {[%clk 0:00:05.9]}
39. Kh2 {[%clk 0:02:01.1]} 39... Qf6 {[%clk 0:00:05.4]} 40. Rxa7 {[%clk
0:02:00.5]} 40... Qe5+ {[%clk 0:00:04.6]} 41. Kg1 {[%clk 0:01:58.4]} 41... Rd8
{[%clk 0:00:05.3]} 42. Qe2 {[%clk 0:01:24.2]} 42... Qd5 {[%clk 0:00:04.6]} 43.
Ra1 {[%clk 0:01:23.6]} 43... Qd3 {[%clk 0:00:04.4]} 44. Qf2 {[%clk 0:01:13.3]}
44... Rf8 {[%clk 0:00:04.4]} 45. Qg3 {[%clk 0:01:14.8]} 1-0

[Event "*** Titled Tuesday Blitz"]
[Site "Chess.com"]
[Date "2018.12.04"]
[Round "1"]
[White "jerom555888"]
[Black "Manukyan_Artak"]
[Result "1/2-1/2"]
[WhiteElo "2697"]
[BlackElo "2382"]
[TimeControl "180+2"]
[EndTime "13:08:05 PST"]
[Termination "Game drawn by repetition"]

1. Nf3 {[%clk 0:03:01.9]} 1... d5 {[%clk 0:03:00.9]} 2. g3 {[%clk 0:03:03.3]}
2... c6 {[%clk 0:03:02.2]} 3. Bg2 {[%clk 0:03:04.8]} 3... Nf6 {[%clk 0:03:03.6]}
4. O-O {[%clk 0:03:05.8]} 4... Bg4 {[%clk 0:03:04.8]} 5. Ne5 {[%clk 0:03:06.1]}
5... Bf5 {[%clk 0:03:06.1]} 6. d4 {[%clk 0:03:07.5]} 6... Nbd7 {[%clk
0:03:06.9]} 7. c4 {[%clk 0:03:08.9]} 7... e6 {[%clk 0:03:08]} 8. Qb3 {[%clk
0:03:09]} 8... Qb6 {[%clk 0:03:09.2]} 9. Nxd7 {[%clk 0:03:09.7]} 9... Nxd7
{[%clk 0:03:09.3]} 10. Nc3 {[%clk 0:03:09.1]} 10... Be7 {[%clk 0:03:02.9]} 11.
e4 {[%clk 0:03:01.7]} 11... dxe4 {[%clk 0:03:02.8]} 12. Nxe4 {[%clk 0:03:03.6]}
12... Qxb3 {[%clk 0:02:57.6]} 13. axb3 {[%clk 0:03:04.4]} 13... O-O {[%clk
0:02:58.2]} 14. Be3 {[%clk 0:03:05.2]} 14... a6 {[%clk 0:02:56.6]} 15. Rfd1
{[%clk 0:02:46.6]} 15... Nf6 {[%clk 0:02:51.7]} 16. Nc5 {[%clk 0:02:41]} 16...
Bxc5 {[%clk 0:02:48.4]} 17. dxc5 {[%clk 0:02:42.9]} 17... Rad8 {[%clk
0:02:48.6]} 18. b4 {[%clk 0:02:32.6]} 18... Be4 {[%clk 0:02:36.3]} 19. Bg5
{[%clk 0:02:22.9]} 19... Bxg2 {[%clk 0:02:30.9]} 20. Kxg2 {[%clk 0:02:24.8]}
20... h6 {[%clk 0:02:24.5]} 21. Bxf6 {[%clk 0:02:25.6]} 21... gxf6 {[%clk
0:02:26.2]} 22. Kf3 {[%clk 0:02:27]} 22... f5 {[%clk 0:02:21.5]} 23. Kf4 {[%clk
0:02:27.2]} 23... f6 {[%clk 0:02:22.7]} 24. h4 {[%clk 0:02:21]} 24... h5 {[%clk
0:02:21.7]} 25. Rd6 {[%clk 0:01:47.9]} 25... Rxd6 {[%clk 0:02:06.7]} 26. cxd6
{[%clk 0:01:49.8]} 26... Rd8 {[%clk 0:02:05.6]} 27. c5 {[%clk 0:01:50.2]} 27...
Kf7 {[%clk 0:02:06.1]} 28. Re1 {[%clk 0:01:48.9]} 28... Re8 {[%clk 0:01:53.4]}
29. Ke3 {[%clk 0:01:40.5]} 29... e5 {[%clk 0:01:50.9]} 30. Kd3 {[%clk
0:01:41.2]} 30... Ke6 {[%clk 0:01:47.4]} 31. Kc4 {[%clk 0:01:42.6]} 31... Rg8
{[%clk 0:01:48.3]} 32. Rd1 {[%clk 0:01:41.2]} 32... Rg4+ {[%clk 0:01:44.5]} 33.
Kb3 {[%clk 0:01:42.1]} 33... Kd7 {[%clk 0:01:42.1]} 34. Ka4 {[%clk 0:01:43.3]}
34... f4 {[%clk 0:01:42]} 35. Ka5 {[%clk 0:01:38.5]} 35... fxg3 {[%clk
0:01:42.8]} 36. fxg3 {[%clk 0:01:39.3]} 36... Rxg3 {[%clk 0:01:40.3]} 37. Rf1
{[%clk 0:01:35.9]} 37... Ke6 {[%clk 0:00:51.6]} 38. Kb6 {[%clk 0:01:22.3]} 38...
Rg7 {[%clk 0:00:49.8]} 39. b5 {[%clk 0:01:11.9]} 39... axb5 {[%clk 0:00:49.3]}
40. Ra1 {[%clk 0:01:11.8]} 40... e4 {[%clk 0:00:50.5]} 41. Ra8 {[%clk 0:01:12]}
41... f5 {[%clk 0:00:45.9]} 42. Re8+ {[%clk 0:01:09.1]} 42... Kf6 {[%clk
0:00:43.5]} 43. Rf8+ {[%clk 0:01:03.6]} 43... Ke6 {[%clk 0:00:41.9]} 44. Re8+
{[%clk 0:01:04.2]} 44... Kf6 {[%clk 0:00:43.2]} 45. Rf8+ {[%clk 0:01:04.5]}
45... Ke6 {[%clk 0:00:44.2]} 46. Re8+ {[%clk 0:00:55.6]} 46... Kf6 {[%clk
0:00:45.2]} 47. Rf8+ {[%clk 0:00:53.8]} 1/2-1/2

[Event "*** Titled Tuesday Blitz"]
[Site "Chess.com"]
[Date "2018.12.04"]
[Round "1"]
[White "AkibaRubi"]
[Black "narutosmith"]
[Result "1-0"]
[WhiteElo "2568"]
[BlackElo "2219"]
[TimeControl "180+2"]
[EndTime "13:08:06 PST"]
[Termination "AkibaRubi won on time"]

1. d4 {[%clk 0:03:01.9]} 1... Nf6 {[%clk 0:03:00.9]} 2. Nf3 {[%clk 0:03:03]}
2... e6 {[%clk 0:03:01.6]} 3. Bf4 {[%clk 0:03:04.1]} 3... b6 {[%clk 0:03:01.8]}
4. e3 {[%clk 0:03:05.2]} 4... Bb7 {[%clk 0:03:03.2]} 5. Bd3 {[%clk 0:03:06.7]}
5... d6 {[%clk 0:03:03.4]} 6. O-O {[%clk 0:03:07.5]} 6... Nbd7 {[%clk 0:02:57]}
7. c4 {[%clk 0:03:08.1]} 7... g6 {[%clk 0:02:56.4]} 8. Nc3 {[%clk 0:03:08.9]}
8... Bg7 {[%clk 0:02:48.2]} 9. e4 {[%clk 0:03:10]} 9... h6 {[%clk 0:02:08.6]}
10. Qd2 {[%clk 0:03:00.2]} 10... Nh5 {[%clk 0:02:05.1]} 11. Be3 {[%clk
0:02:45.5]} 11... e5 {[%clk 0:02:06]} 12. Rad1 {[%clk 0:02:32.6]} 12... g5
{[%clk 0:01:45]} 13. dxe5 {[%clk 0:02:31.2]} 13... dxe5 {[%clk 0:01:43.9]} 14.
Bc2 {[%clk 0:02:32.1]} 14... Nf4 {[%clk 0:01:19.2]} 15. c5 {[%clk 0:02:08.2]}
15... Nxc5 {[%clk 0:00:54.1]} 16. Bxc5 {[%clk 0:02:08.8]} 16... Qxd2 {[%clk
0:00:52.1]} 17. Ba4+ {[%clk 0:02:09.5]} 17... c6 {[%clk 0:00:48.4]} 18. Rxd2
{[%clk 0:02:10.4]} 18... bxc5 {[%clk 0:00:49.3]} 19. Rfd1 {[%clk 0:02:03.2]}
19... O-O {[%clk 0:00:33.5]} 20. Rd7 {[%clk 0:01:52.8]} 20... Rab8 {[%clk
0:00:33.2]} 21. Bb3 {[%clk 0:01:53.3]} 21... Bf6 {[%clk 0:00:24.1]} 22. Na4
{[%clk 0:01:51.5]} 22... Ne2+ {[%clk 0:00:15.7]} 23. Kf1 {[%clk 0:01:50.5]}
23... Nd4 {[%clk 0:00:16.6]} 24. Nxc5 {[%clk 0:01:51.1]} 24... Bc8 {[%clk
0:00:16.3]} 25. Nxd4 {[%clk 0:01:46.5]} 25... exd4 {[%clk 0:00:15.1]} 26. Rxa7
{[%clk 0:01:46.8]} 26... Rd8 {[%clk 0:00:13.1]} 27. Bxf7+ {[%clk 0:01:39.2]}
27... Kh8 {[%clk 0:00:12.3]} 28. b3 {[%clk 0:01:25.4]} 28... Bg4 {[%clk
0:00:06.4]} 29. f3 {[%clk 0:01:25.4]} 29... Bc8 {[%clk 0:00:07]} 30. Ke2 {[%clk
0:01:23.4]} 30... Rb5 {[%clk 0:00:07.7]} 31. Rc1 {[%clk 0:01:16.6]} 31... d3+
{[%clk 0:00:07.8]} 32. Nxd3 {[%clk 0:01:17.2]} 32... c5 {[%clk 0:00:08]} 33.
Rxc5 {[%clk 0:01:15.6]} 33... Rxc5 {[%clk 0:00:08.5]} 34. Nxc5 {[%clk
0:01:17.5]} 34... Bd4 {[%clk 0:00:09.8]} 35. Rc7 {[%clk 0:01:17.7]} 35... g4
{[%clk 0:00:06.5]} 36. Bd5 {[%clk 0:01:15.4]} 36... gxf3+ {[%clk 0:00:06.7]} 37.
gxf3 {[%clk 0:01:17.3]} 37... Bh3 {[%clk 0:00:07.5]} 38. Nd3 {[%clk 0:01:12.5]}
38... Bf6 {[%clk 0:00:06.9]} 39. Nf4 {[%clk 0:01:12.6]} 1-0

[Event "*** Titled Tuesday Blitz"]
[Site "Chess.com"]
[Date "2018.12.04"]
[Round "1"]
[White "ShadowJolteon"]
[Black "Rikikits"]
[Result "1-0"]
[WhiteElo "2405"]
[BlackElo "2718"]
[TimeControl "180+2"]
[EndTime "13:08:10 PST"]
[Termination "ShadowJolteon won on time"]

1. d4 {[%clk 0:03:00]} 1... Nf6 {[%clk 0:02:47.6]} 2. c4 {[%clk 0:02:58]} 2...
c5 {[%clk 0:02:47.2]} 3. Nf3 {[%clk 0:02:58.3]} 3... cxd4 {[%clk 0:02:47.8]} 4.
Nxd4 {[%clk 0:03:00.2]} 4... e5 {[%clk 0:02:49]} 5. Nb5 {[%clk 0:02:59.6]} 5...
d5 {[%clk 0:02:50.6]} 6. cxd5 {[%clk 0:03:01.3]} 6... Bc5 {[%clk 0:02:51.3]} 7.
N5c3 {[%clk 0:03:03.2]} 7... O-O {[%clk 0:02:51.1]} 8. g3 {[%clk 0:02:59.2]}
8... Bf5 {[%clk 0:02:51.5]} 9. Bg2 {[%clk 0:02:53.2]} 9... e4 {[%clk 0:02:52.5]}
10. O-O {[%clk 0:02:51.8]} 10... Nbd7 {[%clk 0:02:54]} 11. Nd2 {[%clk
0:02:48.8]} 11... Re8 {[%clk 0:02:53.5]} 12. Nc4 {[%clk 0:02:48.7]} 12... a6
{[%clk 0:02:52.5]} 13. Be3 {[%clk 0:02:47]} 13... b5 {[%clk 0:02:53.3]} 14. Bxc5
{[%clk 0:02:45.3]} 14... Nxc5 {[%clk 0:02:55.2]} 15. Ne3 {[%clk 0:02:43]} 15...
Bg6 {[%clk 0:02:56.8]} 16. Qd4 {[%clk 0:02:41.5]} 16... Qd6 {[%clk 0:02:54.2]}
17. Rfd1 {[%clk 0:02:35.6]} 17... Rac8 {[%clk 0:02:50.8]} 18. b4 {[%clk
0:02:29.3]} 18... Ncd7 {[%clk 0:02:44.8]} 19. a4 {[%clk 0:02:23.8]} 19... Qe5
{[%clk 0:02:30]} 20. Qxe5 {[%clk 0:02:17.3]} 20... Nxe5 {[%clk 0:02:26]} 21.
axb5 {[%clk 0:02:17.6]} 21... Rxc3 {[%clk 0:02:25.8]} 22. bxa6 {[%clk
0:02:08.4]} 22... Nfd7 {[%clk 0:02:10.1]} 23. d6 {[%clk 0:02:05.7]} 23... Rb3
{[%clk 0:01:56.6]} 24. a7 {[%clk 0:02:04]} 24... Ra8 {[%clk 0:01:54.1]} 25. Nd5
{[%clk 0:01:59.4]} 25... f5 {[%clk 0:01:28.1]} 26. Rdc1 {[%clk 0:01:31.9]} 26...
Kf7 {[%clk 0:01:18.3]} 27. Nc7 {[%clk 0:01:31.4]} 27... Rxa7 {[%clk 0:01:17.6]}
28. Rxa7 {[%clk 0:01:32.2]} 28... Rxb4 {[%clk 0:01:19.5]} 29. f4 {[%clk
0:01:27.7]} 29... exf3 {[%clk 0:01:18]} 30. exf3 {[%clk 0:01:29.3]} 30... Rb6
{[%clk 0:01:05.1]} 31. f4 {[%clk 0:01:25.2]} 31... Nd3 {[%clk 0:01:05.5]} 32.
Rd1 {[%clk 0:01:11.5]} 32... N3c5 {[%clk 0:01:05.3]} 33. Na8 {[%clk 0:01:08.3]}
33... Ra6 {[%clk 0:00:51.4]} 34. Rxa6 {[%clk 0:01:06.3]} 34... Nxa6 {[%clk
0:00:53.3]} 35. Re1 {[%clk 0:01:03.9]} 35... Nac5 {[%clk 0:00:50.3]} 36. Bc6
{[%clk 0:01:01.4]} 36... Nb8 {[%clk 0:00:38.4]} 37. Re7+ {[%clk 0:01:00.5]}
37... Kf8 {[%clk 0:00:33]} 38. Bb5 {[%clk 0:01:02.4]} 38... Bf7 {[%clk
0:00:21.7]} 39. Rc7 {[%clk 0:00:56.8]} 1-0

[Event "*** Titled Tuesday Blitz"]
[Site "Chess.com"]
[Date "2018.12.04"]
[Round "1"]
[White "Perecke"]
[Black "M1711"]
[Result "0-1"]
[WhiteElo "1967"]
[BlackElo "2482"]
[TimeControl "180+2"]
[EndTime "13:08:11 PST"]
[Termination "M1711 won by resignation"]

1. e4 {[%clk 0:03:00.4]} 1... e5 {[%clk 0:03:01]} 2. Nf3 {[%clk 0:03:00.2]} 2...
Nc6 {[%clk 0:03:02.1]} 3. Bb5 {[%clk 0:02:58.2]} 3... a6 {[%clk 0:03:02.7]} 4.
Ba4 {[%clk 0:02:58.6]} 4... Nf6 {[%clk 0:03:03.5]} 5. O-O {[%clk 0:02:56.9]}
5... Be7 {[%clk 0:03:05.1]} 6. Re1 {[%clk 0:02:52.6]} 6... b5 {[%clk 0:03:05.8]}
7. Bb3 {[%clk 0:02:51.2]} 7... O-O {[%clk 0:03:05.3]} 8. a3 {[%clk 0:02:50.3]}
8... d6 {[%clk 0:03:03.8]} 9. c3 {[%clk 0:02:49.1]} 9... Be6 {[%clk 0:03:01.2]}
10. Ba2 {[%clk 0:02:45]} 10... Qd7 {[%clk 0:02:54.1]} 11. d4 {[%clk 0:02:41.1]}
11... Bxa2 {[%clk 0:02:53]} 12. dxe5 {[%clk 0:02:27.5]} 12... Nxe5 {[%clk
0:02:53.2]} 13. Nxe5 {[%clk 0:02:25.3]} 13... dxe5 {[%clk 0:02:55.1]} 14. Qxd7
{[%clk 0:02:23.5]} 14... Nxd7 {[%clk 0:02:57]} 15. Rxa2 {[%clk 0:02:24]} 15...
Nc5 {[%clk 0:02:54.1]} 16. Be3 {[%clk 0:02:20]} 16... Rfd8 {[%clk 0:02:50.4]}
17. Nd2 {[%clk 0:02:15.2]} 17... Rd7 {[%clk 0:02:48.3]} 18. b4 {[%clk
0:02:08.9]} 18... Na4 {[%clk 0:02:45]} 19. c4 {[%clk 0:02:00.2]} 19... c6 {[%clk
0:02:39.9]} 20. cxb5 {[%clk 0:01:56.7]} 20... cxb5 {[%clk 0:02:33.9]} 21. Nb3
{[%clk 0:01:51.6]} 21... Nc3 {[%clk 0:02:24.7]} 22. Rc2 {[%clk 0:01:44]} 22...
Nxe4 {[%clk 0:02:20.3]} 23. Bf4 {[%clk 0:01:39.5]} 23... exf4 {[%clk 0:02:18.6]}
24. Rce2 {[%clk 0:01:14.2]} 24... Nd6 {[%clk 0:01:17.4]} 25. Rxe7 {[%clk
0:01:12.7]} 25... Rxe7 {[%clk 0:01:19.3]} 26. Rxe7 {[%clk 0:01:11.4]} 26... Nc4
{[%clk 0:01:21]} 27. Nc5 {[%clk 0:01:03.9]} 27... Kf8 {[%clk 0:01:18.4]} 28. Re4
{[%clk 0:00:54.8]} 28... Nxa3 {[%clk 0:01:16.7]} 29. Rxf4 {[%clk 0:00:54.3]}
29... Nc4 {[%clk 0:01:11.4]} 30. Ne6+ {[%clk 0:00:45.4]} 30... Kg8 {[%clk
0:01:08.8]} 31. Nc7 {[%clk 0:00:45.2]} 31... Ra7 {[%clk 0:01:04.8]} 32. Rd4
{[%clk 0:00:44.1]} 32... g6 {[%clk 0:01:03.1]} 33. Rd8+ {[%clk 0:00:39.7]} 33...
Kg7 {[%clk 0:01:04.1]} 34. Rd7 {[%clk 0:00:37.2]} 34... Kh6 {[%clk 0:00:49.6]}
35. Rxf7 {[%clk 0:00:35.8]} 35... Ne5 {[%clk 0:00:43.3]} 36. Re7 {[%clk
0:00:32.2]} 36... Nc6 {[%clk 0:00:40.9]} 37. Rd7 {[%clk 0:00:27]} 37... Nxb4
{[%clk 0:00:36.7]} 38. Re7 {[%clk 0:00:27.9]} 38... Nc6 {[%clk 0:00:35.2]} 39.
Rd7 {[%clk 0:00:26.5]} 39... b4 {[%clk 0:00:35.4]} 40. Rf7 {[%clk 0:00:20.9]}
40... b3 {[%clk 0:00:35.9]} 41. Nxa6 {[%clk 0:00:19.1]} 41... Rxf7 {[%clk
0:00:35.9]} 0-1

[Event "*** Titled Tuesday Blitz"]
[Site "Chess.com"]
[Date "2018.12.04"]
[Round "1"]
[White "JonahWillow"]
[Black "BIG_Pirate"]
[Result "1-0"]
[WhiteElo "2682"]
[BlackElo "2361"]
[TimeControl "180+2"]
[EndTime "13:08:18 PST"]
[Termination "JonahWillow won by resignation"]

1. e4 {[%clk 0:03:01.5]} 1... d5 {[%clk 0:02:59.3]} 2. Nc3 {[%clk 0:03:02.2]}
2... dxe4 {[%clk 0:02:58.2]} 3. Nxe4 {[%clk 0:03:04.1]} 3... Nd7 {[%clk
0:02:51]} 4. Bc4 {[%clk 0:03:02.8]} 4... e6 {[%clk 0:02:46.7]} 5. Nf3 {[%clk
0:03:00.8]} 5... Ngf6 {[%clk 0:02:47.6]} 6. Neg5 {[%clk 0:02:59]} 6... Nb6
{[%clk 0:02:42.5]} 7. Bb3 {[%clk 0:02:57.2]} 7... h6 {[%clk 0:02:43.7]} 8. Nh3
{[%clk 0:02:56.1]} 8... Be7 {[%clk 0:02:42.7]} 9. O-O {[%clk 0:02:57]} 9... O-O
{[%clk 0:02:43.2]} 10. d4 {[%clk 0:02:58.7]} 10... c5 {[%clk 0:02:41.8]} 11.
dxc5 {[%clk 0:02:56.5]} 11... Bxc5 {[%clk 0:02:41.6]} 12. Nf4 {[%clk 0:02:57.5]}
12... Qxd1 {[%clk 0:02:09.9]} 13. Rxd1 {[%clk 0:02:59.4]} 13... Bd7 {[%clk
0:02:03.7]} 14. Ne5 {[%clk 0:02:53.4]} 14... Ba4 {[%clk 0:02:04]} 15. Nfd3
{[%clk 0:02:47.6]} 15... Be7 {[%clk 0:02:03.5]} 16. Be3 {[%clk 0:02:41.3]} 16...
Nfd5 {[%clk 0:01:53.4]} 17. Bc5 {[%clk 0:02:38.9]} 17... Bxb3 {[%clk 0:01:46.1]}
18. axb3 {[%clk 0:02:39.3]} 18... Rfc8 {[%clk 0:01:46.7]} 19. Bxe7 {[%clk
0:02:33.6]} 19... Nxe7 {[%clk 0:01:48.6]} 20. c4 {[%clk 0:02:34.2]} 20... a6
{[%clk 0:01:42.5]} 21. Nb4 {[%clk 0:02:32.6]} 21... Rd8 {[%clk 0:01:40.9]} 22.
f3 {[%clk 0:02:30.1]} 22... Nf5 {[%clk 0:01:41.4]} 23. Nc2 {[%clk 0:02:28.1]}
23... Kf8 {[%clk 0:01:39.3]} 24. g4 {[%clk 0:02:28.8]} 24... Ne7 {[%clk
0:01:28.8]} 25. Kf2 {[%clk 0:02:29.9]} 25... Ke8 {[%clk 0:01:29.3]} 26. h4
{[%clk 0:02:30.6]} 26... Nd7 {[%clk 0:01:30.3]} 27. Nd3 {[%clk 0:02:25.8]} 27...
Ng6 {[%clk 0:01:29.9]} 28. h5 {[%clk 0:02:23.1]} 28... Nge5 {[%clk 0:01:30.7]}
29. Nxe5 {[%clk 0:02:18.8]} 29... Nxe5 {[%clk 0:01:32.6]} 30. Nd4 {[%clk
0:02:17]} 30... Rd7 {[%clk 0:01:29]} 31. Ke3 {[%clk 0:01:53.4]} 31... Rad8
{[%clk 0:01:29.4]} 32. Rd2 {[%clk 0:01:53.1]} 32... Nc6 {[%clk 0:01:11.3]} 33.
Nxc6 {[%clk 0:01:53.5]} 33... Rxd2 {[%clk 0:01:13.2]} 34. Nxd8 {[%clk
0:01:53.3]} 34... Rxd8 {[%clk 0:01:14.7]} 35. f4 {[%clk 0:01:51.2]} 35... Rd6
{[%clk 0:01:11.2]} 36. b4 {[%clk 0:01:51.6]} 36... Ke7 {[%clk 0:01:10.8]} 37.
Ra5 {[%clk 0:01:50.5]} 37... Rb6 {[%clk 0:01:10.5]} 38. b5 {[%clk 0:01:49.7]}
38... axb5 {[%clk 0:01:10.9]} 39. c5 {[%clk 0:01:51]} 39... Ra6 {[%clk
0:01:05.5]} 40. Rxb5 {[%clk 0:01:52.6]} 40... Ra7 {[%clk 0:01:07.1]} 41. Ke4
{[%clk 0:01:52.3]} 41... Kd7 {[%clk 0:01:08]} 42. Rb6 {[%clk 0:01:52.8]} 42...
Kc7 {[%clk 0:01:08.3]} 43. g5 {[%clk 0:01:53.2]} 43... Ra4+ {[%clk 0:01:08.1]}
44. b4 {[%clk 0:01:52.8]} 44... Ra1 {[%clk 0:01:08.9]} 45. gxh6 {[%clk
0:01:52.5]} 45... gxh6 {[%clk 0:01:09.8]} 46. f5 {[%clk 0:01:51.7]} 46... Re1+
{[%clk 0:01:10.3]} 47. Kd4 {[%clk 0:01:51.3]} 47... Re2 {[%clk 0:00:55.1]} 48.
fxe6 {[%clk 0:01:46.3]} 48... fxe6 {[%clk 0:00:57]} 49. Kd3 {[%clk 0:01:43.5]}
49... Re1 {[%clk 0:00:57.7]} 50. Kc4 {[%clk 0:01:43.2]} 50... Re4+ {[%clk
0:00:56.5]} 51. Kb5 {[%clk 0:01:43.3]} 51... Re5 {[%clk 0:00:57.2]} 52. Rd6
{[%clk 0:01:43]} 52... Re4 {[%clk 0:00:49.1]} 53. Rd1 {[%clk 0:01:39]} 53... Re5
{[%clk 0:00:48.1]} 54. Rg1 {[%clk 0:01:37.9]} 54... Rxh5 {[%clk 0:00:43.6]} 55.
Rg7+ {[%clk 0:01:36.7]} 55... Kc8 {[%clk 0:00:44.6]} 56. Kb6 {[%clk 0:01:36.4]}
56... e5 {[%clk 0:00:40.9]} 57. Rg8+ {[%clk 0:01:34.3]} 57... Kd7 {[%clk
0:00:40.9]} 58. Kxb7 {[%clk 0:01:36.2]} 58... e4 {[%clk 0:00:34.2]} 59. c6+
{[%clk 0:01:36.2]} 59... Kd6 {[%clk 0:00:35.6]} 60. c7 {[%clk 0:01:35.9]} 60...
Rb5+ {[%clk 0:00:36.4]} 61. Ka6 {[%clk 0:01:37.2]} 1-0

[Event "*** Titled Tuesday Blitz"]
[Site "Chess.com"]
[Date "2018.12.04"]
[Round "1"]
[White "Keaton87"]
[Black "Quiet_Desperation"]
[Result "1-0"]
[WhiteElo "2531"]
[BlackElo "2141"]
[TimeControl "180+2"]
[EndTime "13:08:19 PST"]
[Termination "Keaton87 won by resignation"]

1. Nf3 {[%clk 0:03:01.9]} 1... Nf6 {[%clk 0:02:59.2]} 2. c4 {[%clk 0:03:02.7]}
2... e6 {[%clk 0:03:00.1]} 3. g3 {[%clk 0:03:03.1]} 3... Be7 {[%clk 0:02:57.6]}
4. Bg2 {[%clk 0:03:02.6]} 4... O-O {[%clk 0:02:58.8]} 5. O-O {[%clk 0:03:03.8]}
5... d5 {[%clk 0:03:00.1]} 6. d4 {[%clk 0:03:04.2]} 6... c6 {[%clk 0:03:01.2]}
7. Qc2 {[%clk 0:03:01.7]} 7... b6 {[%clk 0:03:00.1]} 8. Rd1 {[%clk 0:03:02.5]}
8... Bb7 {[%clk 0:03:01.3]} 9. Nbd2 {[%clk 0:02:43.6]} 9... Nbd7 {[%clk
0:02:54]} 10. e4 {[%clk 0:02:44]} 10... dxe4 {[%clk 0:02:51.6]} 11. Nxe4 {[%clk
0:02:45.5]} 11... Nxe4 {[%clk 0:02:52.8]} 12. Qxe4 {[%clk 0:02:47.1]} 12... Nf6
{[%clk 0:02:54.1]} 13. Qc2 {[%clk 0:02:46.3]} 13... Qc8 {[%clk 0:02:50.6]} 14.
c5 {[%clk 0:02:47.1]} 14... Rd8 {[%clk 0:02:42.7]} 15. b3 {[%clk 0:02:07.6]}
15... Nd5 {[%clk 0:02:37.7]} 16. Bb2 {[%clk 0:02:06.4]} 16... Ba6 {[%clk
0:02:37.3]} 17. Ne5 {[%clk 0:02:04.7]} 17... f6 {[%clk 0:02:32.9]} 18. Nf3
{[%clk 0:02:03]} 18... Nb4 {[%clk 0:02:27.8]} 19. Qc3 {[%clk 0:01:54.7]} 19...
Nd5 {[%clk 0:02:25.5]} 20. Qc1 {[%clk 0:01:52.4]} 20... Nb4 {[%clk 0:02:21.4]}
21. Ba3 {[%clk 0:01:19.6]} 21... bxc5 {[%clk 0:02:16.8]} 22. dxc5 {[%clk
0:01:13]} 22... Rxd1+ {[%clk 0:02:17.7]} 23. Qxd1 {[%clk 0:01:14.6]} 23... Bxc5
{[%clk 0:02:18.2]} 24. Rc1 {[%clk 0:01:10.4]} 24... Bf8 {[%clk 0:02:18.1]} 25.
Nd4 {[%clk 0:01:07.7]} 25... Bb7 {[%clk 0:02:18.1]} 26. Bxb4 {[%clk 0:01:05.6]}
26... Bxb4 {[%clk 0:02:18.5]} 27. Nxc6 {[%clk 0:01:07]} 27... Qf8 {[%clk
0:02:06.9]} 28. Qd7 {[%clk 0:01:02.1]} 28... Bxc6 {[%clk 0:02:03.4]} 29. Rxc6
{[%clk 0:00:52.6]} 29... Rd8 {[%clk 0:02:01.3]} 30. Qxe6+ {[%clk 0:00:53.5]}
30... Kh8 {[%clk 0:02:02.3]} 31. Be4 {[%clk 0:00:43.5]} 31... Qg8 {[%clk
0:01:39.2]} 32. Kg2 {[%clk 0:00:39.6]} 32... Qxe6 {[%clk 0:01:39.3]} 33. Rxe6
{[%clk 0:00:41.5]} 33... Bc5 {[%clk 0:01:30.6]} 34. Rc6 {[%clk 0:00:40]} 34...
Bb6 {[%clk 0:01:31.3]} 35. Rc2 {[%clk 0:00:41.5]} 35... g6 {[%clk 0:01:31.9]}
36. Bc6 {[%clk 0:00:38.1]} 36... f5 {[%clk 0:01:23.5]} 37. b4 {[%clk 0:00:38.9]}
37... Kg7 {[%clk 0:01:24.7]} 38. a4 {[%clk 0:00:39.7]} 38... Rd4 {[%clk
0:01:23.6]} 39. a5 {[%clk 0:00:40.2]} 39... Bd8 {[%clk 0:01:24.4]} 40. Rb2
{[%clk 0:00:36.5]} 40... f4 {[%clk 0:01:18.8]} 41. Kf3 {[%clk 0:00:34.3]} 41...
fxg3 {[%clk 0:01:19.6]} 42. hxg3 {[%clk 0:00:35.2]} 42... g5 {[%clk 0:01:19.8]}
43. Be4 {[%clk 0:00:31.7]} 43... Bf6 {[%clk 0:01:15.2]} 44. Rb3 {[%clk
0:00:30.3]} 44... g4+ {[%clk 0:01:02.5]} 45. Ke3 {[%clk 0:00:31.1]} 45... Rc4
{[%clk 0:00:58.6]} 46. b5 {[%clk 0:00:29.2]} 46... Bd4+ {[%clk 0:00:42.5]} 47.
Kd3 {[%clk 0:00:30]} 47... Ra4 {[%clk 0:00:43.7]} 48. b6 {[%clk 0:00:30.7]}
48... axb6 {[%clk 0:00:44.6]} 49. axb6 {[%clk 0:00:32]} 1-0